[Event "25th Troya Open 2017"]
[Site "Canakkale"]
[Date "2017.08.09"]
[Round "4.9"]
[White "Konusoglu, Kemal Safa"]
[Black "Cakin, Ahmet Burak"]
[Result "1-0"]
[ECO "D63"]
[WhiteElo "1555"]
[BlackElo "1653"]
[Annotator "NA RC"]
[PlyCount "121"]
[EventCountry "TUR"]
[SourceTitle "playchess.com"]
[Source "ChessBase"]
[SourceQuality "1"]
[TimeControl "5400+30"]

1. d4 {[%emt 0:00:30]} d5 {[%emt 0:01:00]} 2. Nf3 {[%emt 0:00:30]} Nf6 {[%emt 0:00:30]} 3. c4 {[%emt 0:00:30]} c6 {[%emt 0:00:30]} 4. Nc3 {[%emt 0:00:30]} e6 {[%emt 0:00:30]} 5. Bg5 {[%emt 0:00:30]} Nbd7 {[%emt 0:00:30]} 6. e3 {[%emt 0:00:00]} Be7 {[%emt 0:01:30]} 7. Rc1 {[%emt 0:00:00]} O-O {[%emt 0:00:30]} 8. Bd3 {[%emt 0:00:00]} dxc4 {[%emt 0:04:30]} 9. Bxc4 {[%emt 0:00:00]} c5 {[%emt 0:07:30]} 10. O-O {[%emt 0:01:30]} b6 {[%emt 0:11:30]} 11. Qe2 {[%emt 0:01:30]} Bb7 {[%emt 0:05:30]} 12. Rfd1 {[%emt 0:01:30]} Nd5 {[%emt 0:10:30]} 13. Bxe7 {[%emt 0:00:30]} Qxe7 {[%emt 0:00:30]} 14. Bxd5 {[%emt 0:03:30]} exd5 {[%emt 0:09:30]} 15. dxc5 {[%emt 0:00:30]} Nxc5 {[%emt 0:01:30]} 16. Nxd5 {[%emt 0:01:30]} Bxd5 {[%emt 0:01:30]} 17. Rxd5 {[%emt 0:00:00]} Rac8 {[%emt 0:06:30]} 18. h3 {[%emt 0:11:00]} h6 {[%emt 0:07:30]} 19. Rdd1 {[%emt 0:01:30]} Qe6 {[%emt 0:04:30]} 20. Nd4 {[%emt 0:09:30]} Qxa2 {[%emt 0:06:08]} 21. Ra1 {[%emt 0:01:30]} Qd5 {[%emt 0:00:37]} 22. Rxa7 {[%emt 0:01:30]} Nb3 {[%emt 0:03:07]} 23. Ra3 {[%emt 0:04:30]} Nxd4 {[%emt 0:01:02]} 24. Rxd4 {[%emt 0:02:30]} Qe5 {[%emt 0:03:51]} 25. f4 {[%emt 0:01:30]} Rc1+ {[%emt 0:02:11]} 26. Kh2 {[%emt 0:02:30]} Qc5 {[%emt 0:00:43]} 27. Rad3 {[%emt 0:01:30]} Qa5 {[%emt 0:07:49]} 28. b4 {[%emt 0:01:30]} Qa1 {[%emt 0:01:39]} 29. Rd1 {[%emt 0:00:30]} Rxd1 {[%emt 0:00:52]} 30. Qxd1 {[%emt 0:00:30]} Qc3 {[%emt 0:00:52]} 31. Qd2 {[%emt 0:00:30]} Qc7 {[%emt 0:00:27]} 32. Rd7 {[%emt 0:02:30]} Qc6 {[%emt 0:00:20]} 33. Qd6 {[%emt 0:01:30]} Qxd6 {[%emt 0:00:54]} 34. Rxd6 {[%emt 0:00:30]} Rb8 {[%emt 0:00:00]} 35. Kg3 {[%emt 0:00:30]} b5 {[%emt 0:00:56]} 36. Kf3 {[%emt 0:00:30]} Kh7 {[%emt 0:00:27]} 37. Ke4 {[%emt 0:01:30]} f6 {[%emt 0:00:30]} 38. Kd5 {[%emt 0:03:30]} Kg6 {[%emt 0:00:31]} 39. e4 {[%emt 0:00:30]} Kf7 {[%emt 0:00:31]} 40. Rd7+ {[%emt 0:00:30]} Kg8 {[%emt 0:00:30]} 41. e5 {[%emt 0:00:30]} fxe5 {[%emt 0:00:38]} 42. fxe5 {[%emt 0:00:30]} g5 {[%emt 0:00:30]} 43. e6 {[%emt 0:00:30]} h5 {[%emt 0:00:21]} 44. e7 {[%emt 0:04:30]} Re8 {[%emt 0:00:07]} 45. Rd8 {[%emt 0:00:30]} Kf7 {[%emt 0:00:01]} 46. Rxe8 {[%emt 0:00:30]} Kxe8 {[%emt 0:00:01]} 47. Kd6 {[%emt 0:00:30]} h4 {[%emt 0:01:30]} 48. Kc6 {[%emt 0:00:00]} Kxe7 {[%emt 0:00:12]} 49. Kxb5 {[%emt 0:00:00]} Kf6 {[%emt 0:01:02]} 50. Kc6 {[%emt 0:00:30]} Kf5 {[%emt 0:00:00]} 51. b5 {[%emt 0:00:00]} Kf4 {[%emt 0:01:34]} 52. b6 {[%emt 0:00:00]} Kg3 {[%emt 0:00:07]} 53. b7 {[%emt 0:00:00]} Kxg2 {[%emt 0:00:00]} 54. b8=Q {[%emt 0:00:00]} Kxh3 {[%emt 0:00:00]} 55. Kd5 {[%emt 0:00:30]} Kg2 {[%emt 0:01:27]} 56. Ke4 {[%emt 0:00:00]} h3 {[%emt 0:00:24]} 57. Qb2+ {[%emt 0:00:00]} Kg3 {[%emt 0:00:11]} 58. Qe5+ {[%emt 0:00:30]} Kg2 {[%emt 0:00:56]} 59. Qxg5+ {[%emt 0:00:30]} Kh1 {[%emt 0:00:31]} 60. Kf3 {[%emt 0:00:30]} Kh2 {[%emt 0:00:25]} 61. Ke4 {[%emt 0:00:30]} 1-0

[Event "25th Troya Open 2017"]
[Site "Canakkale"]
[Date "2017.08.09"]
[Round "4.10"]
[White "Zaimov, Berk"]
[Black "Bayindir, Kuzey"]
[Result "1-0"]
[ECO "C10"]
[WhiteElo "1544"]
[BlackElo "1669"]
[Annotator "NA RC"]
[PlyCount "77"]
[EventCountry "TUR"]
[SourceTitle "playchess.com"]
[Source "ChessBase"]
[SourceQuality "1"]
[TimeControl "5400+30"]

1. e4 {[%emt 0:00:30]} e6 {[%emt 0:01:00]} 2. d4 {[%emt 0:00:30]} d5 {[%emt 0:00:30]} 3. Nc3 {[%emt 0:00:30]} dxe4 {[%emt 0:00:30]} 4. Nxe4 {[%emt 0:00:30]} Nd7 {[%emt 0:00:30]} 5. Nf3 {[%emt 0:00:30]} Ngf6 {[%emt 0:00:30]} 6. Bg5 {[%emt 0:00:00]} Be7 {[%emt 0:00:30]} 7. Nxf6+ {[%emt 0:01:00]} Nxf6 {[%emt 0:00:30]} 8. Bd3 {[%emt 0:00:30]} b6 {[%emt 0:00:30]} 9. Bxf6 {[%emt 0:00:30]} Bxf6 {[%emt 0:00:00]} 10. Be4 {[%emt 0:00:30]} Rb8 {[%emt 0:00:00]} 11. Qd3 {[%emt 0:03:30]} c5 {[%emt 0:04:30]} 12. Rd1 {[%emt 0:09:30]} cxd4 {[%emt 0:03:30]} 13. Nxd4 {[%emt 0:00:00]} Qxd4 {[%emt 0:00:30]} 14. Bc6+ {[%emt 0:03:00]} Bd7 {[%emt 0:00:00]} 15. Bxd7+ {[%emt 0:01:30]} Kxd7 {[%emt 0:00:00]} 16. Qb5+ {[%emt 0:00:00]} Ke7 {[%emt 0:00:30]} 17. Rxd4 {[%emt 0:00:00]} Bxd4 {[%emt 0:00:00]} 18. Qa4 {[%emt 0:05:30]} Rbd8 {[%emt 0:06:00]} 19. Qxa7+ {[%emt 0:04:30]} Rd7 {[%emt 0:00:30]} 20. Qa3+ {[%emt 0:00:00]} Bc5 {[%emt 0:00:30]} 21. b4 {[%emt 0:00:00]} Bd6 {[%emt 0:00:00]} 22. O-O {[%emt 0:00:00]} b5 {[%emt 0:00:00]} 23. Qb3 {[%emt 0:01:00]} Rc8 {[%emt 0:00:30]} 24. g3 {[%emt 0:00:30]} Rdc7 {[%emt 0:00:30]} 25. Qd3 {[%emt 0:00:30]} Rxc2 {[%emt 0:01:30]} 26. Qxb5 {[%emt 0:07:30]} Rxa2 {[%emt 0:00:30]} 27. Rd1 {[%emt 0:00:30]} h6 {[%emt 0:02:30]} 28. Qb6 {[%emt 0:02:30]} Rd8 {[%emt 0:01:30]} 29. Qc6 {[%emt 0:01:30]} Raa8 {[%emt 0:05:30]} 30. Kg2 {[%emt 0:00:30]} Rac8 {[%emt 0:01:30]} 31. Qa6 {[%emt 0:06:30]} Ra8 {[%emt 0:06:30]} 32. Qb7+ {[%emt 0:00:00]} Ke8 {[%emt 0:03:30]} 33. Rxd6 {[%emt 0:00:00]} Rxd6 {[%emt 0:00:30]} 34. Qxa8+ {[%emt 0:00:30]} Rd8 {[%emt 0:00:00]} 35. Qc6+ {[%emt 0:00:00]} Ke7 {[%emt 0:00:00]} 36. b5 {[%emt 0:00:00]} Rd6 {[%emt 0:00:30]} 37. Qc5 {[%emt 0:00:30]} Kd7 {[%emt 0:00:00]} 38. Qa7+ {[%emt 0:00:00]} Ke8 {[%emt 0:00:00]} 39. b6 {[%emt 0:00:00]} 1-0

[Event "25th Troya Open 2017"]
[Site "Canakkale"]
[Date "2017.08.09"]
[Round "4.11"]
[White "Demirtas, Hafize"]
[Black "Altin, Halis"]
[Result "1-0"]
[ECO "D37"]
[WhiteElo "1708"]
[BlackElo "1598"]
[Annotator "NA RC"]
[PlyCount "63"]
[EventCountry "TUR"]
[SourceTitle "playchess.com"]
[Source "ChessBase"]
[SourceQuality "1"]
[TimeControl "5400+30"]

1. d4 {[%emt 0:00:30]} Nf6 {[%emt 0:01:00]} 2. c4 {[%emt 0:00:30]} e6 {[%emt 0:00:30]} 3. a3 {[%emt 0:00:30]} d5 {[%emt 0:00:30]} 4. Nc3 {[%emt 0:00:30]} Nbd7 {[%emt 0:02:30]} 5. e3 {[%emt 0:00:30]} Be7 {[%emt 0:00:30]} 6. Nf3 {[%emt 0:03:30]} O-O {[%emt 0:01:30]} 7. b3 {[%emt 0:01:30]} b6 {[%emt 0:02:30]} 8. Bb2 {[%emt 0:01:30]} Bb7 {[%emt 0:00:30]} 9. Bd3 {[%emt 0:00:30]} Re8 {[%emt 0:05:30]} 10. O-O {[%emt 0:01:30]} Nf8 {[%emt 0:01:30]} 11. Ne5 {[%emt 0:00:30]} N6d7 {[%emt 0:00:30]} 12. f4 {[%emt 0:03:30]} Nxe5 {[%emt 0:01:30]} 13. fxe5 {[%emt 0:00:30]} f6 {[%emt 0:02:30]} 14. cxd5 {[%emt 0:05:30]} exd5 {[%emt 0:06:30]} 15. Qh5 {[%emt 0:14:30]} Bc8 {[%emt 0:06:30]} 16. Nxd5 {[%emt 0:04:30]} g6 {[%emt 0:11:30]} 17. Qf3 {[%emt 0:05:30]} Be6 {[%emt 0:01:30]} 18. Nxe7+ {[%emt 0:02:30]} Rxe7 {[%emt 0:00:30]} 19. exf6 {[%emt 0:00:30]} Rf7 {[%emt 0:00:30]} 20. Bc4 {[%emt 0:05:30]} Rc8 {[%emt 0:04:30]} 21. d5 {[%emt 0:01:30]} Bd7 {[%emt 0:01:30]} 22. a4 {[%emt 0:00:30]} c6 {[%emt 0:05:30]} 23. dxc6 {[%emt 0:01:30]} Be6 {[%emt 0:00:00]} 24. Ba6 {[%emt 0:02:30]} Rcc7 {[%emt 0:01:00]} 25. Be5 {[%emt 0:01:30]} Bxb3 {[%emt 0:00:30]} 26. Bxc7 {[%emt 0:00:30]} Qxc7 {[%emt 0:00:30]} 27. e4 {[%emt 0:00:30]} Be6 {[%emt 0:00:30]} 28. Rac1 {[%emt 0:00:30]} Bc8 {[%emt 0:00:30]} 29. Bxc8 {[%emt 0:01:30]} Qxc8 {[%emt 0:00:30]} 30. Rfd1 {[%emt 0:01:30]} Ne6 {[%emt 0:00:30]} 31. Rd6 {[%emt 0:00:30]} Nc5 {[%emt 0:00:30]} 32. Rcd1 {[%emt 0:00:30]} 1-0

[Event "25th Troya Open 2017"]
[Site "Canakkale"]
[Date "2017.08.09"]
[Round "4.12"]
[White "Gurel, Ediz"]
[Black "Istekli, Erdem"]
[Result "1/2-1/2"]
[ECO "B22"]
[WhiteElo "1586"]
[BlackElo "1696"]
[Annotator "NA RC"]
[PlyCount "48"]
[EventCountry "TUR"]
[SourceTitle "playchess.com"]
[Source "ChessBase"]
[SourceQuality "1"]
[TimeControl "5400+30"]

1. e4 {[%emt 0:00:30]} c5 {[%emt 0:01:00]} 2. Nf3 {[%emt 0:00:30]} Nc6 {[%emt 0:00:30]} 3. c3 {[%emt 0:00:30]} d5 {[%emt 0:00:30]} 4. exd5 {[%emt 0:00:30]} Qxd5 {[%emt 0:00:00]} 5. d4 {[%emt 0:01:30]} Nf6 {[%emt 0:03:00]} 6. Be2 {[%emt 0:01:30]} cxd4 {[%emt 0:02:30]} 7. cxd4 {[%emt 0:00:30]} e6 {[%emt 0:00:00]} 8. Nc3 {[%emt 0:03:30]} Qd6 {[%emt 0:00:00]} 9. O-O {[%emt 0:00:30]} Be7 {[%emt 0:00:30]} 10. h3 {[%emt 0:04:30]} O-O {[%emt 0:01:30]} 11. Be3 {[%emt 0:05:30]} b6 {[%emt 0:08:30]} 12. Rc1 {[%emt 0:16:30]} Bb7 {[%emt 0:01:30]} 13. a3 {[%emt 0:00:30]} Rac8 {[%emt 0:17:30]} 14. Qa4 {[%emt 0:05:30]} Rfd8 {[%emt 0:06:30]} 15. Rfd1 {[%emt 0:01:30]} Qb8 {[%emt 0:16:30]} 16. Ba6 {[%emt 0:03:30]} Bxa6 {[%emt 0:11:30]} 17. Qxa6 {[%emt 0:00:30]} g6 {[%emt 0:11:47]} 18. b4 {[%emt 0:02:30]} Bf8 {[%emt 0:05:53]} 19. Ne2 {[%emt 0:01:30]} Nd5 {[%emt 0:00:21]} 20. Bg5 {[%emt 0:00:30]} Be7 {[%emt 0:00:32]} 21. Bxe7 {[%emt 0:00:30]} Ncxe7 {[%emt 0:02:03]} 22. Qa4 {[%emt 0:03:30]} Qb7 {[%emt 0:02:51]} 23. Qb3 {[%emt 0:03:30]} Rxc1 {[%emt 0:01:48]} 24. Rxc1 {[%emt 0:00:30]} Rc8 {[%emt 0:00:00]} 1/2-1/2

[Event "25th Troya Open 2017"]
[Site "Canakkale"]
[Date "2017.08.11"]
[Round "7.3"]
[White "Baltaci, Ismail Tarik"]
[Black "Rzayev, Askar Aliakbar"]
[Result "0-1"]
[ECO "B15"]
[WhiteElo "1946"]
[BlackElo "2072"]
[Annotator "NA RC"]
[PlyCount "96"]
[EventCountry "TUR"]
[SourceTitle "playchess.com"]
[Source "ChessBase"]
[SourceQuality "1"]
[TimeControl "5400+30"]

{[%evp 8,96,34,33,52,36,33,32767,32767,32767,32767,10,10,1,39,36,45,53,58,53,35,16,100,0,11,-19,0,-18,0,-4,0,0,0,13,13,0,8,0,6,0,20,0,12,1,0,-18,-19,32767,32767,32767,32767,-43,-24,-30,0,-33,-18,-25,-26,-29,-19,-35,-57,-124,-133,-241,-226,32767,32767,32767,32767,-276,32767,32767,32767,32767,32767,32767,32767,32767,32767,32767,32767,32767,-559,-597,-425,-541,-560,-561,-344]} 1. e4 {[%emt 0:00:30]} g6 {[%emt 0:05:00]} 2. d4 {[%emt 0:00:30]} Bg7 {[%emt 0:00:30]} 3. Nc3 {[%emt 0:00:30]} c6 {[%emt 0:00:00]} 4. Nf3 {[%emt 0:02:30]} d5 {[%emt 0:00:00]} 5. h3 {[%emt 0:00:30]} dxe4 {[%emt 0:02:30]} 6. Nxe4 {[%emt 0:00:30]} Nf6 {[%emt 0:00:30]} 7. Bd3 {[%emt 0:00:30]} Nxe4 {[%emt 0:00:30]} 8. Bxe4 {[%emt 0:00:30]} Nd7 {[%emt 0:00:00]} 9. O-O {[%emt 0:04:30]} O-O {[%emt 0:00:00]} 10. Re1 {[%emt 0:03:30] LiveBook: 37 Games} Re8 {[%emt 0:07:30] B15: Caro-Kann: 3 Nc3: 3...g6 and 3...dxe4 4 Nxe4 Nf6 5 Nxf6+ exf6} 11. c3 {[%emt 0:12:30]} Qc7 {[%emt 0:04:30]} 12. Bg5 {[%emt 0:12:30]} Nf6 {[%emt 0:02:30]} 13. Bd3 {[%emt 0:00:30]} c5 {[%emt 0:19:30]} 14. Bc4 $146 {[%emt 0:05:30]} ({Predecessor:} 14. Bb5 Rf8 15. Qe2 a6 16. Bc4 cxd4 17. cxd4 e6 18. Rac1 Qb6 19. Qd2 {0-1 (40) Matulovic,M (2485)-Nikolic,Z (2445) Cuprija 1986}) 14... cxd4 {[%emt 0:06:30]} (14... e6 $11) 15. Qb3 {[%emt 0:00:30]} ({White should play} 15. Qxd4 $16 Bf5 16. Qh4) 15... e6 {[%emt 0:00:30]} 16. Nxd4 {[%emt 0:01:30]} a6 {[%emt 0:01:30]} 17. a4 {[%emt 0:00:30]} Bd7 {[%emt 0:01:30]} 18. Qa2 {[%emt 0:08:30]} Rac8 {[%emt 0:02:30]} (18... h6 $5 {[%cal Rh6g5]} 19. Be3 Rac8 $11) 19. Bb3 {[%emt 0:00:30]} h6 {[%emt 0:00:30]} 20. Be3 {[%emt 0:02:30]} Ne4 {[%emt 0:04:30]} 21. Rad1 {[%emt 0:08:30]} Nc5 {[%emt 0:00:30]} 22. Bc2 {[%emt 0:00:00]} b5 {[%emt 0:03:30]} 23. a5 {[%emt 0:04:00]} Re7 {[%emt 0:12:30]} 24. Nb3 {[%emt 0:05:30]} Na4 {[%emt 0:00:30]} 25. Qa3 {[%emt 0:00:30]} Ree8 {[%emt 0:00:30]} 26. Bb6 {[%emt 0:03:30]} Qb7 $1 {[%emt 0:01:30]} 27. Be4 {[%emt 0:02:30]} Bc6 {[%emt 0:00:00]} 28. Bxc6 {[%emt 0:00:38]} Qxc6 {[%emt 0:00:00]} 29. Be3 {[%emt 0:01:42]} Bf8 {[%emt 0:01:30]} 30. Qa2 {[%emt 0:00:59]} e5 {[%emt 0:00:30]} 31. Nd2 {[%emt 0:02:07]} Qe6 {[%emt 0:01:30]} 32. Qb1 {[%emt 0:01:26]} f5 {[%emt 0:00:30]} 33. Nf3 {[%emt 0:00:23]} Qb3 {[%emt 0:00:30]} 34. Nh4 {[%emt 0:01:22]} Rc6 {[%emt 0:01:30]} 35. Qd3 {[%emt 0:01:28]} ({Better is} 35. Rd2 $15) 35... Nxb2 {[%emt 0:01:30]} 36. Qd7 {[%emt 0:00:09]} (36. Qb1 $142) 36... Qe6 {[%emt 0:00:30]} ({Don't take} 36... Nxd1 37. Qxe8 Re6 38. Qd8 $17) 37. Qxe6+ {[%emt 0:00:55]} Rcxe6 {[%emt 0:00:30]} 38. Rd7 {[%emt 0:00:18]} Nc4 {[%emt 0:00:30]} 39. Bc1 {[%emt 0:02:09]} Nxa5 {[%emt 0:00:30]} 40. Red1 {[%emt 0:00:30]} Nb3 {[%emt 0:00:30]} 41. Bb2 {[%emt 0:00:30]} Nc5 {[%emt 0:00:30]} 42. Rc7 {[%emt 0:00:30]} e4 {[%emt 0:00:30]} 43. c4 {[%emt 0:00:30]} Nd3 {[%emt 0:00:30]} 44. Bc3 {[%emt 0:00:30]} b4 {[%emt 0:00:30]} 45. Bd4 {[%emt 0:00:53]} Rd6 {[%emt 0:08:08]} 46. Ba1 {[%emt 0:01:41]} Be7 {[%emt 0:03:20]} 47. c5 {[%emt 0:00:28]} Re6 {[%emt 0:00:35]} ({Not} 47... Bxh4 48. cxd6 Bxf2+ 49. Kf1 $15) 48. g3 {[%emt 0:01:24]} Bf6 $19 {[%emt 0:01:05]} 0-1

[Event "25th Troya Open 2017"]
[Site "Canakkale"]
[Date "2017.08.11"]
[Round "7.5"]
[White "Yerden, Huseyin Eren"]
[Black "Alaz, Ahmet Efekan"]
[Result "0-1"]
[ECO "E11"]
[WhiteElo "1816"]
[BlackElo "2048"]
[Annotator "NA RC"]
[PlyCount "178"]
[EventCountry "TUR"]
[SourceTitle "playchess.com"]
[Source "ChessBase"]
[SourceQuality "1"]
[TimeControl "5400+30"]

{[%evp 11,176,0,0,7,16,0,22,9,16,-11,0,-22,-16,-6,19,-35,-32,-45,-33,-33,-7,-36,-22,-10,16,20,12,0,16,11,33,1,0,0,0,-50,-39,-41,0,0,0,0,0,10,4,-40,0,0,10,32767,32767,32767,32767,32767,32767,32767,32767,32767,32767,32767,32767,32767,32767,32767,32767,-35,-35,-141,-133,-200,0,0,0,-35,20,-44,0,0,0,-102,-89,-81,0,-47,-41,-129,0,0,75,66,110,143,131,142,118,32767,32767,32767,32767,32767,32767,32767,32767,32767,32767,32767,32767,32767,32767,32767,32767,32767,32767,32767,32767,32767,32767,32767,32767,32767,32767,32767,32767,32767,32767,32767,32767,32767,32767,32767,32767,32767,32767,32767,32767,32767,32767,32767,32767,32767,32767,32767,32767,32767,29988,29989,29989,29990,29990,29991,29991,32767,32767,32767,32767,32767,32767,32767,32767,133,880,-711,-12834,-1454,-5202,-12841,-12843]} 1. d4 {[%emt 0:00:30]} Nf6 {[%emt 0:01:00]} 2. c4 {[%emt 0:00:30]} e6 {[%emt 0:00:30]} 3. g3 {[%emt 0:00:30]} d5 {[%emt 0:00:30]} 4. Nf3 {[%emt 0:00:30]} Bb4+ {[%emt 0:00:30]} 5. Bd2 {[%emt 0:00:30]} Be7 {[%emt 0:00:30]} 6. Bg2 {[%emt 0:00:30]} c6 {[%emt 0:00:30]} 7. Qc2 {[%emt 0:00:30]} O-O {[%emt 0:00:30]} 8. O-O {[%emt 0:00:30]} Nbd7 {[%emt 0:00:30]} 9. b3 {[%emt 0:01:30]} b6 {[%emt 0:00:30]} 10. a4 {[%emt 0:08:30] E11: Bogo-Indian} (10. Rd1 a5 11. Bc3 Bb7 12. Nbd2 Qc7 13. Rac1 c5 14. Bb2 dxc4 15. Nxc4 b5 16. Nce5 Nxe5 17. Nxe5 Bxg2 18. Kxg2 {0-1 (55) Inarkiev,E (2727)-Jakovenko,D (2718) Poikovsky 2017}) 10... a5 {[%emt 0:07:30] LiveBook: 3 Games} 11. Bf4 {[%emt 0:01:30]} Bb7 $146 {[%emt 0:07:30]} ({Predecessor:} 11... Ba6 12. Nbd2 Nh5 13. Be3 Nhf6 14. Bf4 Nh5 {½-½ (14) Blagojevic,D (2508)-Abramovic,B (2524) Banja Koviljaca 2002}) 12. Nc3 {[%emt 0:02:30]} Rc8 {[%emt 0:00:30]} 13. Rad1 {[%emt 0:03:30]} Ba6 {[%emt 0:11:30]} 14. Nd2 {[%emt 0:08:30]} c5 {[%emt 0:22:30]} 15. dxc5 {[%emt 0:03:30]} Bxc5 {[%emt 0:02:30]} 16. Nb5 {[%emt 0:06:30]} Bxb5 {[%emt 0:04:30]} 17. axb5 {[%emt 0:01:30]} h6 {[%emt 0:01:30]} 18. Nf3 {[%emt 0:05:30]} Qe7 {[%emt 0:06:30]} 19. Be5 {[%emt 0:08:30]} dxc4 {[%emt 0:03:30]} 20. bxc4 {[%emt 0:00:30]} Nd5 {[%emt 0:07:38]} 21. Qd3 {[%emt 0:07:30]} Nxe5 {[%emt 0:01:26]} 22. Nxe5 {[%emt 0:00:30]} Nb4 {[%emt 0:00:00]} 23. Qd7 {[%emt 0:00:30]} Qf6 {[%emt 0:02:17]} 24. Nc6 {[%emt 0:04:30]} Qc3 {[%emt 0:11:57]} 25. Rc1 {[%emt 0:02:30]} Qb2 {[%emt 0:00:38]} 26. Bf3 {[%emt 0:03:30]} Rfe8 {[%emt 0:01:54]} 27. Rb1 {[%emt 0:02:30]} Qf6 {[%emt 0:01:05]} 28. Rfd1 {[%emt 0:01:30]} e5 {[%emt 0:02:17]} (28... h5 $5) 29. Rf1 {[%emt 0:01:30]} Nc2 {[%emt 0:00:34]} 30. Bg4 {[%emt 0:02:30]} Ra8 {[%emt 0:00:30]} 31. Qd5 {[%emt 0:00:30]} Nd4 {[%emt 0:00:30]} 32. e3 {[%emt 0:00:30]} Nf5 {[%emt 0:00:30]} 33. Rbd1 {[%emt 0:00:30]} a4 {[%emt 0:02:05]} 34. Bf3 {[%emt 0:09:14]} Rac8 {[%emt 0:00:30]} 35. Bg4 {[%emt 0:00:30]} Ra8 {[%emt 0:00:30]} 36. Bf3 {[%emt 0:00:30]} Rac8 {[%emt 0:00:30]} 37. Bg4 {[%emt 0:00:30]} Rc7 {[%emt 0:00:30]} 38. Kg2 {[%emt 0:01:07]} g6 {[%emt 0:00:31]} 39. e4 {[%emt 0:00:45]} (39. Bxf5 $11 Qxf5 40. e4) 39... Nd4 {[%emt 0:00:28]} 40. f4 {[%emt 0:00:42] [#]} Nxc6 $2 {[%emt 0:00:36]} (40... Nc2 $1 $19 {[%cal Rc2e3]} 41. Rd3 exf4) 41. bxc6 {[%emt 0:00:07]} exf4 {[%emt 0:00:23]} 42. Rxf4 {[%emt 0:00:22]} Qb2+ {[%emt 0:00:32]} 43. Rd2 {[%emt 0:00:15]} (43. Kh3 $11) 43... Qe5 {[%emt 0:00:34]} (43... Qg7 $1 $15 44. Rf1 a3) 44. Bd7 $1 {[%emt 0:05:59]} Re7 {[%emt 0:00:02]} 45. Rg4 {[%emt 0:01:45]} Kg7 {[%emt 0:00:35]} 46. Rf4 {[%emt 0:00:31] [#]} Kg8 {[%emt 0:00:57]} ({Black should play} 46... f6 $1 $17 47. Re2 a3) 47. Rg4 {[%emt 0:00:06]} Kf8 {[%emt 0:00:24]} 48. Rd1 {[%emt 0:02:20]} Be3 {[%emt 0:00:26]} ({Black should play} 48... g5 $17 49. h4 a3 50. hxg5 hxg5) 49. Rf1 {[%emt 0:01:10]} Qxd5 {[%emt 0:00:35]} (49... Qb2+ $11 {remains equal.} 50. Kh3 Bg5) 50. cxd5 {[%emt 0:00:48]} Rexd7 {[%emt 0:00:32]} 51. cxd7 {[%emt 0:00:24]} Rxd7 {[%emt 0:00:17]} 52. Rxg6 $1 {[%emt 0:00:47]} a3 {[%emt 0:00:23]} 53. Rc6 {[%emt 0:00:52]} Ra7 {[%emt 0:00:30]} 54. Ra1 {[%emt 0:00:30]} Bd4 {[%emt 0:00:30]} 55. Ra2 {[%emt 0:00:30]} b5 {[%emt 0:00:30]} 56. Rc8+ {[%emt 0:00:30]} Ke7 {[%emt 0:00:30]} 57. Rb8 {[%emt 0:00:30]} Ra5 {[%emt 0:00:30]} 58. Rb7+ {[%emt 0:00:30]} Kd6 {[%emt 0:00:30]} 59. Kf3 {[%emt 0:00:30]} Kc5 {[%emt 0:00:30]} 60. Rc7+ {[%emt 0:00:30]} Kb4 {[%emt 0:00:30]} 61. d6 {[%emt 0:00:30]} Ra8 {[%emt 0:00:30]} 62. d7 {[%emt 0:00:30]} Rd8 {[%emt 0:00:30]} 63. Rd2 {[%emt 0:00:30]} Bc3 {[%emt 0:00:30]} 64. Rc2 {[%emt 0:02:54]} Bf6 {[%emt 0:01:14]} 65. Kf4 {[%emt 0:00:30]} Kb3 {[%emt 0:00:30]} 66. e5 {[%emt 0:00:30]} Bg5+ {[%emt 0:00:30]} 67. Ke4 {[%emt 0:00:30]} b4 {[%emt 0:00:30]} 68. h4 {[%emt 0:00:30]} Be7 {[%emt 0:00:30]} 69. Rd2 {[%emt 0:00:30]} Ra8 {[%emt 0:00:30]} 70. Rd3+ {[%emt 0:00:30]} Ka4 {[%emt 0:00:30]} 71. Rc2 {[%emt 0:00:30]} Rd8 {[%emt 0:00:30]} 72. Rc7 {[%emt 0:00:30]} Ra8 {[%emt 0:00:30]} 73. Rc2 {[%emt 0:00:30]} b3 {[%emt 0:00:30]} 74. Rc4+ {[%emt 0:00:30]} Kb5 {[%emt 0:00:30]} 75. Kd5 {[%emt 0:00:30]} b2 {[%emt 0:00:00]} 76. Rb3+ {[%emt 0:00:45]} Ka5 {[%emt 0:00:06]} 77. Rc8 {[%emt 0:00:00]} Ka4 {[%emt 0:01:00]} 78. Kc4 {[%emt 0:00:16]} Ra7 {[%emt 0:00:28]} 79. Rb4+ {[%emt 0:01:02]} Ka5 {[%emt 0:00:28] [#]} 80. Rc5+ $1 {[%emt 0:00:44]} Ka6 {[%emt 0:00:25]} 81. Rc6+ {[%emt 0:00:54]} Ka5 {[%emt 0:00:06]} 82. Rc5+ {[%emt 0:00:03]} Ka6 {[%emt 0:00:07]} 83. Ra4+ {[%emt 0:00:32]} Kb7 {[%emt 0:00:20]} 84. Rb5+ {[%emt 0:00:58]} Ka8 {[%emt 0:00:07]} 85. Rxa7+ {[%emt 0:00:02]} Kxa7 {[%emt 0:00:07]} 86. Ra5+ $4 {[%emt 0:00:30]} (86. Kc3 $18 Ka6 87. Rb3) 86... Kb6 {[%emt 0:00:14]} 87. Ra8 {[%emt 0:00:32] [#]} a2 $19 {[%emt 0:00:23]} 88. Rb8+ {[%emt 0:00:31]} Kc7 {[%emt 0:00:27]} 89. Rxb2 {[%emt 0:00:56]} a1=Q {[%emt 0:00:05]} 0-1